bitfinex/quotes_SOLUSD_20250617
["timestamp","ask_amount","ask_price","bid_price","bid_amount"]
[1750118722528,26.0,150.09,150.01,6.66620282]
[1750118723429,6.66000666,150.15,150.0,56.66666665]
[1750118723738,6.65867625,150.18,150.04,19.07613357]
[1750118723918,26.0,150.15,150.04,0.28432314]
[1750118724241,6.65867625,150.18,150.03,6.1813]
[1750118724242,0.14216157,150.16,150.03,6.1813]
[1750118724433,34.14,150.17,150.04,0.28432314]
[1750118724614,26.0,150.13,150.01,0.28432314]
[1750118725430,26.0,150.09,150.02,6.66577789]
[1750118725636,60.1,150.09,150.02,6.66577789]
[1750118725935,60.1,150.09,149.98,23.47860642]
[1750118726123,60.1,150.09,149.98,6.66755567]
[1750118726318,60.1,150.09,149.99,19.07613357]
[1750118726532,60.1,150.09,149.98,6.66755567]
[1750118726727,60.1,150.09,149.98,23.33644485]
[1750118727109,26.0,150.09,149.97,16.78782512]
[1750118727339,34.04,150.08,149.97,16.78782512]
[1750118727638,40.70355374,150.08,149.98,6.66748988]
[1750118727838,57.36133625,150.08,149.97,16.78796263]
[1750118728041,26.0,150.05,149.97,10.12]
[1750118728545,26.0,150.05,149.93,50.47847528]
[1750118728546,26.0,150.01,149.93,44.22437528]
[1750118728719,34.04,150.0,149.88,52.8]
[1750118728915,26.0,149.97,149.88,52.8]
[1750118729222,26.0,149.97,149.88,59.47189098]
[1750118729432,6.66844491,149.96,149.88,59.47189098]
[1750118729629,60.0,149.97,149.88,59.47189098]
[1750118729828,66.6681013,149.97,149.88,59.47189098]
[1750118730015,60.0,149.97,149.88,59.47189098]
[1750118730338,26.0,150.04,149.89,19.07613357]
[1750118730529,26.0,150.05,149.89,0.28432314]
[1750118730530,60.02,150.0,149.89,0.28432314]
[1750118730924,34.02,150.0,149.89,19.07613357]
[1750118731140,6.663113,150.08,149.93,19.07613357]
[1750118731326,34.02,150.07,149.89,18.79181043]
[1750118731530,26.0,150.0,149.89,0.28432314]
[1750118731855,34.02,149.99,149.88,76.15190165]
[1750118732019,34.02,149.99,149.88,59.47189098]
[1750118732920,26.0,149.96,149.88,59.47189098]
[1750118733115,34.02,149.99,149.88,59.47189098]
[1750118733318,26.0,149.98,149.89,19.07613357]
[1750118733520,34.02,149.99,149.91,0.28432314]
[1750118733947,34.02,149.99,149.91,19.07613357]
[1750118734224,5.87052742,150.12,149.9,23.34889926]
[1750118734225,41.03715702,150.14,149.97,0.28432314]
[1750118734429,26.0,150.1,149.99,0.28432314]
[1750118734647,0.14216157,150.12,149.99,0.28432314]
[1750118734855,16.65404739,150.12,149.99,0.28432314]
[1750118735149,33.94,150.11,149.98,10.26]
[1750118735362,26.0,150.08,149.98,10.26]
[1750118735525,26.0,150.03,149.91,10.26]
[1750118735721,33.96,150.02,149.91,33.60734173]
[1750118735953,26.0,150.01,149.91,33.60734173]
[1750118736225,26.0,150.01,149.91,16.93066906]
[1750118736442,26.0,150.01,149.92,0.28432314]
[1750118736626,33.96,150.02,149.92,19.07613357]
[1750118736826,33.96,150.04,149.92,19.07613357]
[1750118737231,18.64964886,150.13,149.95,19.07613357]
[1750118737547,6.663113,150.08,149.97,0.28432314]
[1750118738143,26.0,150.07,149.97,0.28432314]
[1750118738751,33.94,150.06,149.98,23.33644485]
[1750118740263,18.933972,150.13,149.99,18.933972]
[1750118740264,6.66089389,150.13,149.99,18.933972]
[1750118740436,4.7231998,150.18,150.02,0.14216157]
[1750118740637,6.65867625,150.18,150.04,19.07613357]
[1750118740840,6.0529,150.19,150.04,19.07613357]
[1750118740841,33.88,150.17,150.04,19.07613357]
[1750118741069,23.29823946,150.23,150.04,45.07613357]
[1750118741272,33.86,150.22,150.04,45.07613357]
[1750118741567,9.3731009,150.25,150.03,23.32866758]
[1750118741568,9.3731009,150.25,150.13,0.42648471]
[1750118741771,9.3731009,150.25,150.16,0.28432314]
[1750118742079,9.3731009,150.25,150.14,16.6186]
[1750118742080,26.0,150.21,150.14,6.3586]
[1750118742248,33.86,150.24,150.13,10.26]
[1750118742447,26.0,150.21,150.13,10.26]
[1750118742867,32.65745454,150.21,150.13,16.92078471]
[1750118743970,26.0,150.21,150.13,16.920747]
[1750118744264,26.0,150.19,150.1,6.66222518]
[1750118744569,32.6572699,150.22,150.11,0.28432314]
[1750118744866,9.3731009,150.25,150.14,0.14216157]
[1750118745046,9.3731009,150.25,150.18,0.28432314]
[1750118745374,9.3731009,150.25,150.2,0.28432314]
[1750118745541,9.3731009,150.25,150.2,19.07613357]
[1750118745738,9.3731009,150.25,150.22,0.28432314]
[1750118745966,33.74,150.33,150.22,19.07613357]
[1750118746769,33.74,150.33,150.24,0.28432314]
[1750118747063,9.34835151,150.37,150.24,0.28432314]
[1750118747064,9.34835151,150.37,150.24,19.07613357]
[1750118747268,33.72,150.36,150.24,19.07613357]
[1750118748051,33.72,150.36,150.24,0.28432314]
[1750118748390,26.0,150.32,150.18,10.26]
[1750118748874,33.78,150.31,150.21,18.933972]
[1750118749082,9.34835151,150.37,150.24,0.14216157]
[1750118749245,9.34835151,150.37,150.27,0.14216157]
[1750118749443,9.34835151,150.37,150.28,10.26]
[1750118749652,9.34835151,150.37,150.29,0.28432314]
[1750118749953,9.34835151,150.37,150.29,19.07613357]
[1750118750257,9.34835151,150.37,150.29,0.28432314]
[1750118750468,9.34835151,150.37,150.29,19.07613357]
[1750118750874,9.34835151,150.37,150.32,0.28432314]
[1750118751177,9.34835151,150.37,150.3,6.65335994]
[1750118751380,15.99861558,150.37,150.24,18.64964886]
[1750118751578,26.0,150.34,150.23,16.91646009]
[1750118751881,33.74,150.33,150.24,0.28432314]
[1750118752352,33.74,150.33,150.23,16.91646009]
[1750118752547,33.74,150.33,150.23,10.26]
[1750118752756,32.65159495,150.34,150.24,6.65601703]
[1750118752974,59.68,150.34,150.25,0.14216157]
[1750118753167,33.68,150.34,150.26,0.14216157]
[1750118753784,33.68,150.34,150.25,0.28432314]
[1750118754487,40.33167312,150.34,150.25,0.28432314]
[1750118754782,56.96064744,150.34,150.24,0.14216157]
[1750118754985,40.33167312,150.34,150.24,6.79802389]
[1750118755168,40.33167312,150.34,150.25,0.14216157]
[1750118755364,40.33167312,150.34,150.23,10.26]
[1750118755568,26.0,150.33,150.23,10.26]
[1750118755767,26.0,150.31,150.23,10.26]
[1750118756875,23.2867598,150.3,150.23,10.26]
[1750118757175,26.0,150.27,150.23,10.26]
[1750118757483,33.52,150.26,150.17,6.1079]
[1750118758884,23.29450914,150.25,150.16,11.8342]
[1750118759277,26.0,150.24,150.16,11.8342]
[1750118759587,26.0,150.22,150.16,10.24]
[1750118760685,33.46,150.21,150.11,1.6096]
[1750118760990,6.65911966,150.17,150.09,69.26261764]
[1750118761156,6.65911966,150.17,150.06,7.9073]
[1750118761157,23.30691882,150.17,150.06,7.9073]
[1750118761359,23.30691882,150.17,149.92,18.65547688]
[1750118761360,26.0,150.14,150.03,6.66498022]
[1750118761599,33.46,150.13,150.03,6.66498022]
[1750118761899,26.0,150.12,150.03,6.66498022]
[1750118762195,26.0,150.14,150.03,23.32831421]
[1750118762488,26.0,150.12,150.01,9.88]
[1750118762691,26.0,150.08,149.94,17.4755]
[1750118762911,6.66533359,150.03,149.94,24.14480153]
[1750118763079,6.66533359,150.03,149.94,9.88]
[1750118763080,26.0,150.0,149.94,9.88]
[1750118763404,33.58,149.99,149.94,9.88]
[1750118763599,26.0,149.96,149.89,6.67147155]
[1750118763765,26.0,149.96,149.87,9.88]
[1750118764274,26.0,149.92,149.8,11.525]
[1750118764580,26.0,149.88,149.8,9.88]
[1750118764961,26.0,149.84,149.8,9.88]
[1750118765190,33.62,149.84,149.8,9.88]
[1750118765402,33.62,149.84,149.8,16.55533326]
[1750118765563,6.0206,149.96,149.8,16.55532045]
[1750118765564,33.6,149.85,149.8,16.55532045]
[1750118765768,33.6,149.94,149.8,33.244239]
[1750118766106,33.6,149.94,149.84,26.0]
[1750118766264,33.6,149.94,149.85,19.07613357]
[1750118766778,33.6,149.94,149.82,0.42648471]
[1750118766980,33.6,149.94,149.85,0.28432314]
[1750118767293,26.0,149.91,149.83,6.67423079]
[1750118767470,26.0,149.91,149.83,23.35980777]
[1750118767793,33.68,149.92,149.83,23.35980777]
[1750118768095,33.68,149.98,149.84,19.07613357]
[1750118768279,33.68,149.97,149.84,19.07613357]
[1750118768600,26.0,149.96,149.84,0.28432314]
[1750118768900,26.0,149.96,149.84,19.07613357]
[1750118769201,26.0,149.96,149.86,19.07613357]
[1750118769362,32.66854186,149.96,149.86,0.28432314]
[1750118769565,26.0,149.84,149.66,5.44300553]
[1750118769794,7.9663,149.95,149.68,9.88]
[1750118769795,26.0,149.82,149.68,9.88]
[1750118769992,9.88,149.89,149.68,9.88]
[1750118769993,59.68,149.81,149.68,9.88]
[1750118770305,59.68,149.81,149.69,6.68047297]
[1750118771394,26.0,149.78,149.68,9.88]
[1750118771724,26.0,149.78,149.68,16.56087329]
[1750118771995,26.0,149.78,149.62,5.0175174]
[1750118771996,26.0,149.78,149.64,6.68230849]
[1750118772175,26.0,149.76,149.62,11.70069495]
[1750118772486,26.0,149.76,149.62,5.0175174]
[1750118772680,26.0,149.72,149.62,5.0175174]
[1750118772862,26.0,149.68,149.62,5.0175174]
[1750118773292,26.0,149.66,149.62,5.0175174]
[1750118773675,26.0,149.68,149.62,11.7010156]
[1750118773862,33.6,149.67,149.62,11.7010156]
[1750118774066,33.6,149.71,149.62,11.7010156]
[1750118774269,33.6,149.73,149.62,28.41001172]
[1750118774871,33.6,149.73,149.62,61.82800396]
[1750118776095,33.6,149.73,149.62,28.41001172]
[1750118777099,33.6,149.73,149.62,61.82800396]
[1750118777515,6.67510957,149.82,149.65,26.0]
[1750118777691,6.67510957,149.82,149.62,95.2459962]
[1750118777692,26.0,149.78,149.62,121.2459962]
[1750118777895,26.0,149.78,149.62,28.41001172]
[1750118778784,33.5,149.81,149.62,61.82800396]
[1750118779235,26.0,149.77,149.62,61.82800396]
[1750118779716,26.0,149.77,149.63,19.07613357]
[1750118780314,26.0,149.77,149.63,0.28432314]
[1750118780878,0.14216157,149.76,149.62,28.41001172]
[1750118781406,26.0,149.72,149.62,28.41001172]
[1750118781606,33.38,149.71,149.62,28.41001172]
[1750118781812,33.38,149.71,149.63,0.14216157]
[1750118782122,33.38,149.71,149.62,11.7010156]
[1750118782478,26.0,149.68,149.62,11.7010156]
[1750118782914,26.0,149.68,149.62,5.0175174]
[1750118783406,40.05965297,149.71,149.62,5.0175174]
[1750118783581,26.0,149.68,149.62,5.0175174]
[1750118784095,26.0,149.68,149.62,3.3509174]
[1750118784096,18.79181043,149.67,149.62,3.3509174]
[1750118784293,18.79181043,149.67,149.6,1.4370528]
[1750118784294,26.0,149.62,149.52,6.68806124]
[1750118784497,26.0,149.57,149.42,23.42390576]
[1750118784690,0.14216157,149.55,149.42,6.6925445]
[1750118784890,26.0,149.52,149.42,6.6925445]
[1750118785194,26.0,149.48,149.41,8.33517209]
[1750118785517,33.32,149.51,149.39,6.69388847]
[1750118785687,6.68896321,149.5,149.37,5.06485247]
[1750118785889,16.68896321,149.5,149.37,5.06485247]
[1750118786099,0.14216157,149.47,149.37,5.06485247]
[1750118786300,18.64964886,149.49,149.37,5.06485247]
[1750118786501,0.42648471,149.48,149.37,5.06485247]
[1750118786682,0.42648471,149.46,149.37,5.06485247]
[1750118786886,18.79181043,149.47,149.37,11.75930445]
[1750118787088,33.5,149.46,149.37,11.75930445]
[1750118787397,0.28432314,149.53,149.37,11.75930445]
[1750118787398,16.71866643,149.54,149.37,21.65930445]
[1750118787603,6.68762121,149.53,149.38,18.79181043]
[1750118787912,33.88,149.54,149.4,26.0]
[1750118788218,33.88,149.54,149.41,19.07613357]
[1750118788515,33.98,149.57,149.44,0.14216157]
[1750118788682,34.0,149.58,149.44,0.14216157]
[1750118789087,34.0,149.58,149.43,18.933972]
[1750118789289,6.68583272,149.57,149.42,1.5575]
[1750118789510,26.0,149.55,149.43,42.21414864]
[1750118789696,26.0,149.55,149.44,0.28432314]
[1750118790822,32.68707541,149.55,149.45,6.69120107]
[1750118792133,23.40041452,149.57,149.44,6.97597196]
[1750118792427,26.0,149.55,149.44,6.69164882]
[1750118793540,26.0,149.55,149.44,6.19164882]
[1750118793729,26.0,149.54,149.44,6.19164882]
[1750118794271,26.0,149.5,149.43,6.69209663]
[1750118794626,59.96,149.5,149.43,6.69209663]
[1750118795150,59.96,149.5,149.42,1.5575]
[1750118795353,59.96,149.5,149.4,9.92]
[1750118795825,59.96,149.5,149.4,16.61338078]
[1750118796024,33.96,149.5,149.4,16.61338078]
[1750118796413,26.0,149.47,149.4,16.61338078]
[1750118796614,26.0,149.47,149.37,5.06485247]
[1750118796925,26.0,149.47,149.37,11.75956208]
[1750118797144,26.0,149.47,149.37,28.49652398]
[1750118797315,59.88,149.47,149.37,28.49652398]
[1750118798152,33.92,149.46,149.37,28.49652398]
[1750118798454,26.0,149.43,149.37,11.75955134]
[1750118798744,26.0,149.43,149.37,5.06485247]
[1750118799455,0.14216157,149.42,149.37,5.06485247]
[1750118800047,0.42648471,149.38,149.37,5.06485247]
[1750118800253,59.69047016,149.38,149.37,5.06485247]
[1750118800474,6.69433659,149.38,149.37,5.06485247]
[1750118800753,40.73649816,149.38,149.37,5.06485247]
[1750118801057,59.67047016,149.38,149.37,5.06485247]
[1750118801265,59.38614702,149.38,149.37,5.06485247]
[1750118801427,59.67047016,149.38,149.37,5.06485247]
[1750118802329,40.73649816,149.38,149.37,5.06485247]
[1750118802656,59.38614702,149.38,149.37,5.06485247]
[1750118802949,40.73649816,149.38,149.37,5.06485247]
[1750118803151,6.69433659,149.38,149.37,5.06485247]
[1750118803330,40.59433659,149.38,149.37,5.06485247]
[1750118803522,59.38614702,149.38,149.37,5.06485247]
[1750118804934,59.67047016,149.38,149.37,5.06485247]
[1750118805431,59.38614702,149.38,149.37,5.06485247]
[1750118805632,6.69433659,149.38,149.37,5.06485247]
[1750118805855,40.63433659,149.38,149.37,5.06485247]
[1750118806070,6.69306593,149.41,149.37,5.06485247]
[1750118806371,26.0,149.38,149.37,5.06485247]
[1750118808237,32.69433659,149.38,149.37,5.06485247]
[1750118808547,32.83649816,149.38,149.37,5.06485247]
[1750118808938,66.53433659,149.38,149.37,5.06485247]
[1750118809552,16.73248109,149.41,149.37,5.06485247]
[1750118809553,6.69299243,149.41,149.37,5.06485247]
[1750118809754,33.84,149.4,149.37,5.06485247]
[1750118810051,26.0,149.38,149.37,5.06485247]
[1750118810538,32.69433659,149.38,149.37,5.06485247]
[1750118811033,6.69337033,149.41,149.37,5.06485247]
[1750118811237,35.379491,149.44,149.37,11.75960258]
[1750118811238,6.69242193,149.43,149.37,11.75960258]
[1750118811456,26.0,149.39,149.37,5.06485247]
[1750118811642,33.8,149.38,149.37,5.06485247]
[1750118811830,26.0,149.35,149.29,1.4370528]
[1750118812035,33.78,149.34,149.29,1.4370528]
[1750118812244,26.0,149.31,149.29,1.4370528]
[1750118812447,33.82,149.3,149.29,1.4370528]
[1750118812646,26.0,149.35,149.29,8.13539548]
[1750118812957,33.8,149.34,149.29,1.4370528]
[1750118813149,33.8,149.34,149.29,8.13541049]
[1750118814342,0.14216157,149.42,149.29,8.13535936]
[1750118814540,26.0,149.38,149.29,8.13535936]
[1750118814750,26.0,149.34,149.29,8.13535936]
[1750118814944,33.74,149.33,149.29,8.13535936]
[1750118815531,33.74,149.33,149.29,24.88129009]
[1750118816039,6.69299243,149.41,149.3,0.28432314]
[1750118816234,6.69388847,149.39,149.31,6.69747505]
[1750118816443,26.0,149.38,149.31,6.69747505]
[1750118816846,26.0,149.36,149.29,8.13497813]
[1750118817056,33.68,149.35,149.29,1.4370528]
[1750118817635,33.68,149.35,149.29,8.13542123]
[1750118818663,0.14216157,149.41,149.29,24.88135196]
[1750118818842,33.62,149.4,149.3,0.28432314]
[1750118819039,26.0,149.38,149.3,0.28432314]
[1750118819247,33.6,149.37,149.3,0.28432314]
[1750118819759,33.6,149.37,149.29,8.13542123]
[1750118820765,26.0,149.34,149.29,8.13539379]
[1750118820965,26.0,149.34,149.29,1.4370528]
[1750118821262,26.0,149.34,149.29,8.13531702]
[1750118821576,26.0,149.34,149.29,1.4370528]
[1750118821867,26.0,149.36,149.29,8.13531589]
[1750118822068,53.46081685,149.43,149.29,8.13531589]
[1750118822069,6.69164882,149.44,149.29,8.13531589]
[1750118822256,33.5,149.43,149.31,6.53942314]
[1750118822472,26.0,149.36,149.29,8.13531589]
[1750118822768,33.5,149.35,149.29,8.13531589]
[1750118823873,6.69164882,149.44,149.3,18.933972]
[1750118824038,14.98283991,149.45,149.31,0.14216157]
[1750118824241,33.5,149.44,149.31,0.14216157]
[1750118824448,14.98283991,149.45,149.33,19.07613357]
[1750118824449,8.29151715,149.45,149.33,19.07613357]
[1750118824739,8.29151715,149.45,149.32,23.43959282]
[1750118824740,8.29151715,149.45,149.38,18.64964886]
[1750118824958,8.29151715,149.45,149.38,0.28432314]
[1750118824959,33.52,149.44,149.38,0.28432314]
[1750118825169,8.29151715,149.45,149.38,18.933972]
[1750118825543,33.52,149.45,149.38,18.933972]
[1750118826050,6.4309,149.54,149.38,18.933972]
[1750118826051,23.40823969,149.52,149.38,18.933972]
[1750118826668,6.687174,149.54,149.41,0.14216157]
[1750118826854,26.0,149.51,149.41,0.14216157]
[1750118827238,6.687174,149.54,149.41,0.14216157]
[1750118827442,33.48,149.53,149.41,0.14216157]
[1750118827664,33.48,149.53,149.4,18.933972]
[1750118827868,26.0,149.5,149.4,18.933972]
[1750118828244,6.68627975,149.56,149.41,0.14216157]
[1750118828641,33.42,149.55,149.43,0.28432314]
[1750118828946,33.42,149.54,149.43,28.773972]
[1750118829286,6.68627975,149.56,149.44,0.14216157]
[1750118829446,33.42,149.55,149.44,0.14216157]
[1750118829656,26.0,149.54,149.44,0.14216157]
[1750118829853,26.0,149.54,149.43,28.773972]
[1750118830166,33.42,149.55,149.43,9.84]
[1750118830167,26.0,149.52,149.43,9.84]
[1750118830571,33.4,149.51,149.44,6.69164882]
[1750118830782,26.0,149.48,149.37,8.1235]
[1750118831097,26.0,149.44,149.32,6.354]
[1750118831262,26.0,149.4,149.32,6.354]
[1750118831465,26.0,149.44,149.3,1.5616]
[1750118831466,18.64964886,149.46,149.33,6.69657804]
[1750118831675,26.0,149.42,149.33,6.69657804]
[1750118832188,26.0,149.42,149.31,6.69747505]
[1750118832545,26.0,149.4,149.31,6.69747505]
[1750118832969,26.0,149.38,149.31,6.69747505]
[1750118833281,33.42,149.37,149.31,6.69747505]
[1750118833445,33.42,149.37,149.31,23.44116267]
[1750118833884,33.42,149.37,149.32,0.14216157]
[1750118834063,33.4,149.38,149.31,23.44116267]
[1750118834448,33.4,149.38,149.31,6.69747505]
[1750118834750,40.09435655,149.38,149.3,8.25941727]
[1750118835271,40.09447191,149.38,149.3,8.25941727]
[1750118835591,26.0,149.35,149.29,1.4370528]
[1750118836163,0.14216157,149.34,149.29,1.4370528]
[1750118836877,26.0,149.3,149.29,1.4370528]
[1750118837081,59.32,149.3,149.29,1.4370528]
[1750118838489,33.32,149.3,149.29,1.4370528]
[1750118838785,26.0,149.33,149.29,8.13542509]
[1750118838971,33.26,149.32,149.29,8.13542509]
[1750118839353,33.26,149.34,149.29,8.13542509]
[1750118839563,33.26,149.34,149.29,24.88135582]
[1750118839784,33.26,149.34,149.29,8.13542509]
[1750118840159,26.0,149.31,149.29,1.4370528]
[1750118840894,33.26,149.34,149.29,8.13520417]
[1750118841080,59.26,149.34,149.29,8.13520417]
[1750118841395,65.9561521,149.34,149.29,1.4370528]
[1750118841760,26.0,149.31,149.29,1.4370528]
[1750118842478,33.2,149.3,149.29,1.4370528]
[1750118842685,6.6961521,149.34,149.29,1.4370528]
[1750118842857,33.18,149.3,149.29,1.4370528]
[1750118843383,39.5919,149.3,149.18,33.5153302]
[1750118843559,26.0,149.16,149.06,5.07590619]
[1750118843762,0.14216157,149.14,149.06,1.5871]
[1750118843960,0.14216157,149.14,148.98,1.4370528]
[1750118843961,26.0,149.12,149.0,2.5871]
[1750118844187,26.0,149.12,148.92,1.93793604]
[1750118844387,26.0,149.12,148.86,5.15952261]
[1750118844388,26.0,149.02,148.86,5.15952261]
[1750118844564,26.0,148.98,148.86,5.15952261]
[1750118844866,26.0,148.94,148.86,4.65952261]
[1750118845487,26.0,148.91,148.86,4.65952261]
[1750118845669,26.0,148.87,148.86,4.65952261]
[1750118846995,32.3396,148.87,148.86,4.65952261]
[1750118847285,32.3396,148.87,148.68,9.86]
[1750118847489,26.0,148.83,148.68,16.58575268]
[1750118847668,26.0,148.79,148.68,9.86]
[1750118848068,26.0,148.79,148.68,16.58582905]
[1750118848482,26.0,148.79,148.68,9.86]
[1750118848793,26.0,148.79,148.68,16.58583828]
[1750118848996,26.0,148.79,148.68,9.86]
[1750118849182,26.0,148.79,148.67,1.4370528]
[1750118849484,26.0,148.75,148.62,1.5527]
[1750118849984,26.0,148.74,148.62,1.5527]
[1750118850497,26.0,148.73,148.62,1.5527]
[1750118851070,6.72133351,148.78,148.64,26.0]
[1750118851272,6.72133351,148.78,148.65,9.72]
[1750118851569,33.4,148.82,148.69,32.1985]
[1750118851766,6.71817265,148.85,148.69,6.1985]
[1750118851960,26.0,148.82,148.69,6.1985]
[1750118852160,33.48,148.84,148.69,6.1985]
[1750118852972,26.0,148.81,148.69,6.1985]
[1750118853486,26.0,148.81,148.69,12.92352702]
[1750118853982,26.0,148.81,148.69,6.1985]
[1750118854357,32.72007969,148.81,148.66,6.72643049]
[1750118854871,59.4,148.8,148.66,23.5433281]
[1750118855686,26.0,148.8,148.66,23.5433281]
[1750118855987,33.34,148.81,148.66,49.5433281]
[1750118856192,33.34,148.81,148.69,26.0]
[1750118857286,33.34,148.84,148.66,57.17712333]
[1750118857588,26.0,148.8,148.66,57.17712333]
[1750118858179,33.3,148.83,148.66,57.17712333]
[1750118858499,26.0,148.8,148.66,57.17712333]
[1750118858703,26.0,148.82,148.67,10.0]
[1750118858878,26.0,148.82,148.66,57.17712333]
[1750118859391,26.0,148.8,148.68,0.42648471]
[1750118859706,26.0,148.8,148.7,18.933972]
[1750118860298,32.7204427,148.8,148.64,16.46766415]
[1750118860483,26.0,148.8,148.65,19.07613357]
[1750118860799,33.48,148.79,148.65,18.64964886]
[1750118860978,33.48,148.79,148.66,0.28432314]
[1750118861179,33.48,148.79,148.66,0.42648471]
[1750118861579,59.44,148.8,148.68,19.07613357]
[1750118861785,0.14216157,148.79,148.67,6.72630658]
[1750118861999,32.72044603,148.8,148.67,6.72630658]
[1750118862183,26.0,148.76,148.68,0.28432314]
[1750118862501,26.0,148.76,148.67,6.72630658]
[1750118862683,0.14216157,148.75,148.67,6.72630658]
[1750118863031,0.14216157,148.75,148.66,9.74]
[1750118863032,26.0,148.76,148.66,16.46651615]
[1750118863912,59.48,148.78,148.67,0.28432314]
[1750118864418,59.48,148.78,148.67,18.933972]
[1750118864707,26.0,148.79,148.67,18.933972]
[1750118864889,59.44,148.79,148.67,18.933972]
[1750118865083,6.71952694,148.82,148.68,0.14216157]
[1750118865287,6.71897743,148.84,148.68,0.14216157]
[1750118865489,33.4,148.83,148.68,0.14216157]
[1750118865691,26.0,148.8,148.68,0.14216157]
[1750118865993,26.90594361,148.88,148.71,0.14216157]
[1750118866189,33.4,148.87,148.71,0.14216157]
[1750118866393,6.71591672,148.9,148.71,0.14216157]
[1750118866394,26.0,148.83,148.71,0.14216157]
[1750118867113,33.38,148.86,148.71,0.14216157]
[1750118867694,25.36556558,148.9,148.71,0.14216157]
[1750118867897,6.71411306,148.94,148.77,0.14216157]
[1750118868099,6.71411306,148.94,148.8,0.28432314]
[1750118868302,53.5,148.93,148.78,9.74]
[1750118868503,26.0,148.86,148.78,9.74]
[1750118869014,26.0,148.89,148.78,9.74]
[1750118869191,38.82964886,148.92,148.79,0.28432314]
[1750118869396,26.0,148.89,148.79,0.28432314]
[1750118869606,26.0,148.85,148.78,9.74]
[1750118869811,26.0,148.76,148.71,9.74]
[1750118870013,33.34,148.75,148.71,9.74]
[1750118870321,43.70308621,148.79,148.71,9.74]
[1750118870490,23.3197364,148.85,148.72,7.6783]
[1750118870691,23.3197364,148.85,148.75,26.0]
[1750118870894,23.3197364,148.85,148.76,44.933972]
[1750118871312,23.3197364,148.85,148.78,0.28432314]
[1750118871892,23.3197364,148.85,148.75,18.933972]
[1750118872092,23.3197364,148.85,148.78,26.0]
[1750118872424,23.3197364,148.85,148.79,26.28432314]
[1750118872591,23.3197364,148.85,148.8,18.64964886]
[1750118872790,23.3197364,148.85,148.82,0.28432314]
[1750118872998,37.54,148.94,148.82,0.28432314]
[1750118873214,26.0,148.91,148.81,12.48]
[1750118874020,26.0,148.89,148.82,6.71952694]
[1750118874715,26.0,148.88,148.81,12.48]
[1750118875610,26.0,148.88,148.81,19.19987584]
[1750118875816,6.85770685,148.91,148.81,19.19987584]
[1750118875817,6.71408995,148.95,148.83,6.71907545]
[1750118875988,14.69161516,148.97,148.84,0.28432314]
[1750118876321,7.97855112,148.97,148.84,18.933972]
[1750118876493,37.42,148.96,148.85,1.6509]
[1750118876699,14.69147077,148.97,148.86,0.28432314]
[1750118876919,37.4,148.96,148.86,0.28432314]
[1750118877118,37.4,148.96,148.85,1.6509]
[1750118877300,18.79181043,148.95,148.85,1.6509]
[1750118877494,26.0,148.92,148.85,1.6509]
[1750118877717,26.0,148.92,148.81,12.48]
[1750118877718,0.14216157,148.91,148.81,12.48]
[1750118877899,6.71591672,148.9,148.81,12.48]
[1750118878418,6.71449127,148.94,148.81,19.19972954]
[1750118878626,26.0,148.91,148.82,0.28432314]
[1750118879004,26.0,148.91,148.81,19.19972954]
[1750118879525,26.0,148.91,148.82,0.28432314]
[1750118879838,6.71591672,148.9,148.81,19.19972954]
[1750118880427,26.0,148.87,148.81,12.48]
[1750118880614,63.4,148.87,148.77,1.5124]
[1750118880946,0.14216157,148.82,148.7,1.6081]
[1750118881097,26.0,148.79,148.7,1.6081]
[1750118881302,18.79181043,148.82,148.67,20.38192313]
[1750118881303,26.0,148.75,148.67,20.38192313]
[1750118881526,26.0,148.75,148.67,13.6556325]